fUSD/lending_fUSD_20260121
["ID","MTS","AMOUNT","RATE_DAILY","PERIOD"]
[402917641,1768987523533,-500.0,0.00041095,120]
[402917642,1768987523589,-500.0,0.00041095,120]
[402917643,1768987523649,-500.0,0.00041095,120]
[402917644,1768987523705,-500.0,0.00041095,120]
[402917645,1768987523763,-500.0,0.00041095,120]
[402917646,1768987523822,-500.0,0.00041095,120]
[402917647,1768987523878,-500.0,0.00041095,120]
[402917648,1768987523932,-500.0,0.00041095,120]
[402917649,1768987523989,-500.0,0.00041095,120]
[402917650,1768987524044,-696.85,0.00041095,120]
[402917651,1768987524104,-500.0,0.00041095,120]
[402917652,1768987524160,-500.0,0.00041095,120]
[402917653,1768987524217,-623.64,0.00041095,120]
[402917654,1768987524274,-889.13,0.00041095,120]
[402917655,1768987524330,-500.0,0.00041095,120]
[402917656,1768987524386,-691.15,0.00041095,120]
[402917657,1768987524441,-500.0,0.00041095,120]
[402917658,1768987524497,-500.0,0.00041095,120]
[402917659,1768987524548,-500.0,0.00041095,120]
[402917660,1768987524602,-500.0,0.00041095,120]
[402917661,1768987524656,-500.0,0.00041095,120]
[402917662,1768987524712,-567.88,0.00041095,120]
[402917663,1768987524768,-500.0,0.00041095,120]
[402917664,1768987524823,-655.24,0.00041095,120]
[402917665,1768987524880,-500.0,0.00041095,120]
[402917666,1768987524934,-507.99624955,0.00041095,120]
[402917667,1768987524987,-500.0,0.00041095,120]
[402917668,1768987525044,-500.0,0.00041095,120]
[402917669,1768987525101,-500.0,0.00041095,120]
[402917670,1768987525155,-500.0,0.00041095,120]
[402917671,1768987525210,-500.0,0.00041095,120]
[402917672,1768987525264,-645.41,0.00041095,120]
[402917673,1768987525317,-698.04,0.00041095,120]
[402917674,1768987525372,-545.16,0.00041095,120]
[402917675,1768987525429,-507.63,0.00041095,120]
[402917676,1768987525483,-500.0,0.00041095,120]
[402917677,1768987525536,-500.0,0.00041095,120]
[402917678,1768987525588,-500.0,0.00041095,120]
[402917679,1768987525641,-500.0,0.00041095,120]
[402917680,1768987525694,-500.0,0.00041095,120]
[402917681,1768987525746,-1000.0,0.00041096,30]
[402917682,1768987525797,-150.0,0.00041096,30]
[402917683,1768987525850,-315.38461163,0.00041123,30]
[402917684,1768987525904,-642.0994449,0.00041123,30]
[402917685,1768987525958,-153.61434258,0.00041151,30]
[402917686,1768987526013,-200.0,0.00041272,120]
[402917687,1768987526071,-1100.0,0.0004134,60]
[402917688,1768987526129,-500.0,0.00041369,120]
[402917689,1768987526186,-726.21,0.00041369,120]
[402917690,1768987526243,-500.0,0.00041369,120]
[402917691,1768987526297,-295.57361485,0.00041369,120]
[402917692,1768987526356,-862.89,0.00041369,120]
[402917693,1768987526410,-500.0,0.00041369,120]
[402917694,1768987526462,-500.0,0.00041369,120]
[402917695,1768987526516,-500.0,0.00041369,120]
[402917696,1768987526570,-500.0,0.00041369,120]
[402917697,1768987526623,-500.0,0.00041369,120]
[402917698,1768987526676,-500.0,0.00041369,120]
[402917699,1768987526731,-500.0,0.00041369,120]
[402917700,1768987526785,-572.26,0.00041369,120]
[402917701,1768987526840,-500.0,0.00041369,120]
[402917702,1768987526898,-500.0,0.00041369,120]
[402917703,1768987526952,-500.0,0.00041369,120]
[402917704,1768987527008,-500.0,0.00041369,120]
[402917705,1768987527070,-500.0,0.00041369,120]
[402917706,1768987527125,-500.0,0.00041369,120]
[402917707,1768987527181,-524.63480607,0.00041369,120]
[402917708,1768987527236,-1126.09,0.00041369,120]
[402917709,1768987527293,-500.0,0.00041369,120]
[402917710,1768987527348,-500.0,0.00041369,120]
[402917711,1768987527403,-500.0,0.00041369,120]
[402917712,1768987527457,-500.0,0.00041369,120]
[402917713,1768987527511,-757.16,0.00041369,120]
[402917714,1768987527563,-500.0,0.00041369,120]
[402917715,1768987527611,-500.0,0.00041369,120]
[402917716,1768987527662,-500.0,0.00041369,120]
[402917717,1768987527714,-500.0,0.00041369,120]
[402917718,1768987527767,-500.0,0.00041369,120]
[402917719,1768987527818,-500.0,0.00041369,120]
[402917720,1768987528041,-500.0,0.00041369,120]
[402917721,1768987528099,-268.4,0.00041369,120]
[402917722,1768987528153,-500.0,0.00041369,120]
[402917723,1768987528207,-500.0,0.00041369,120]
[402917724,1768987528260,-500.0,0.00041369,120]
[402917725,1768987528312,-500.0,0.00041369,120]
[402917726,1768987528364,-500.0,0.00041369,120]
[402917727,1768987528416,-1000.0,0.00041369,120]
[402917728,1768987528470,-500.0,0.00041369,120]
[402917729,1768987528520,-500.0,0.00041369,120]
[402917730,1768987528572,-500.0,0.00041369,120]
[402917731,1768987528625,-760.9,0.00041369,120]
[402917732,1768987528678,-500.0,0.00041369,120]
[402917733,1768987528730,-500.0,0.00041369,120]
[402917734,1768987528782,-586.10544065,0.00041369,120]
[402917735,1768987528833,-500.0,0.00041369,120]
[402917736,1768987528886,-668.11,0.00041369,120]
[402917737,1768987528940,-500.0,0.00041369,120]
[402917738,1768987528992,-500.0,0.00041369,120]
[402917739,1768987529045,-500.0,0.00041369,120]
[402917740,1768987529101,-637.16,0.00041369,120]
[402917741,1768987529157,-505.66,0.00041369,120]
[402917742,1768987529212,-1065.16,0.00041369,120]
[402917743,1768987529265,-1064.67,0.00041369,120]
[402917744,1768987529317,-529.33022802,0.00041369,120]
[402917745,1768987529371,-500.0,0.00041369,120]
[402917746,1768987529424,-871.03,0.00041369,120]
[402917747,1768987529477,-525.23,0.00041369,120]
[402917748,1768987529537,-500.0,0.00041369,120]
[402917749,1768987529595,-662.06,0.00041369,120]
[402917750,1768987529650,-1051.35,0.00041369,120]
[402917751,1768987529704,-1104.23,0.00041369,120]
[402917752,1768987529759,-500.0,0.00041369,120]
[402917753,1768987529812,-500.0,0.00041369,120]
[402917754,1768987529865,-500.0,0.00041369,120]
[402917755,1768987529919,-500.0,0.00041369,120]
[402917756,1768987529973,-500.0,0.00041369,120]
[402917757,1768987530027,-500.0,0.00041369,120]
[402917758,1768987530082,-662.74,0.00041369,120]
[402917759,1768987530136,-543.88,0.00041369,120]
[402917760,1768987530189,-500.0,0.00041369,120]
[402917761,1768987530243,-500.0,0.00041369,120]
[402917762,1768987530297,-592.98,0.00041369,120]
[402917763,1768987530352,-500.0,0.00041369,120]
[402917764,1768987530405,-500.0,0.00041369,120]
[402917765,1768987530456,-732.36,0.00041369,120]
[402917766,1768987530508,-500.0,0.00041369,120]
[402917767,1768987530562,-500.0,0.00041369,120]
[402917768,1768987530620,-584.28,0.00041369,120]
[402917769,1768987530672,-500.0,0.00041369,120]
[402917770,1768987530724,-512.89,0.00041369,120]
[402917771,1768987530778,-594.65,0.00041369,120]
[402917772,1768987530830,-500.0,0.00041369,120]
[402917773,1768987530884,-500.0,0.00041369,120]
[402917774,1768987530941,-500.0,0.00041369,120]
[402917775,1768987530991,-500.0,0.00041369,120]
[402917776,1768987531044,-500.0,0.00041369,120]
[402917777,1768987531098,-500.0,0.00041369,120]
[402917778,1768987531153,-500.0,0.00041369,120]
[402917779,1768987531207,-500.0,0.00041369,120]
[402917780,1768987531260,-500.0,0.00041369,120]
[402917781,1768987531314,-726.3,0.00041369,120]
[402917782,1768987531366,-500.0,0.00041369,120]
[402917783,1768987531419,-500.0,0.00041369,120]
[402917784,1768987531472,-500.0,0.00041369,120]
[402917785,1768987531526,-669.38,0.00041369,120]
[402917786,1768987531579,-500.0,0.00041369,120]
[402917787,1768987531631,-500.0,0.00041369,120]
[402917788,1768987531683,-500.0,0.00041369,120]
[402917789,1768987531741,-500.0,0.00041369,120]
[402917790,1768987531799,-500.0,0.00041369,120]
[402917791,1768987531872,-500.0,0.00041369,120]
[402917792,1768987531930,-501.79,0.00041369,120]
[402917793,1768987531986,-500.0,0.00041369,120]
[402917794,1768987532042,-500.0,0.00041369,120]
[402917795,1768987532099,-500.0,0.00041369,120]
[402917796,1768987532148,-500.0,0.00041369,120]
[402917797,1768987532193,-491.19615552,0.00041369,120]
[402917798,1768987532237,-500.0,0.00041369,120]
[402917799,1768987532281,-500.0,0.00041369,120]
[402917800,1768987532326,-633.52,0.00041369,120]
[402917801,1768987532368,-500.0,0.00041369,120]
[402917802,1768987532413,-885.04,0.00041369,120]
[402917803,1768987532456,-500.0,0.00041369,120]
[402917804,1768987532499,-500.0,0.00041369,120]
[402917805,1768987532545,-500.0,0.00041369,120]
[402917806,1768987532589,-500.0,0.00041369,120]
[402917807,1768987532633,-500.0,0.00041369,120]
[402917808,1768987532676,-500.0,0.00041369,120]
[402917809,1768987532720,-594.03,0.00041369,120]
[402917810,1768987532765,-582.17,0.00041369,120]
[402917811,1768987532809,-500.0,0.00041369,120]
[402917812,1768987532852,-500.0,0.00041369,120]
[402917813,1768987532895,-500.0,0.00041369,120]
[402917814,1768987532939,-500.0,0.00041369,120]
[402917815,1768987533160,-500.0,0.00041369,120]
[402917816,1768987533206,-500.0,0.00041369,120]
[402917817,1768987533252,-500.0,0.00041369,120]
[402917818,1768987533298,-500.0,0.00041369,120]
[402917819,1768987533344,-500.0,0.00041369,120]
[402917820,1768987533389,-500.0,0.00041369,120]
[402917821,1768987533432,-500.0,0.00041369,120]
[402917822,1768987533477,-500.0,0.00041369,120]
[402917823,1768987533521,-500.0,0.00041369,120]
[402917824,1768987533567,-500.0,0.00041369,120]
[402917825,1768987533612,-723.02,0.00041369,120]
[402917826,1768987533658,-500.0,0.00041369,120]
[402917827,1768987533702,-500.0,0.00041369,120]
[402917828,1768987533747,-500.0,0.00041369,120]
[402917829,1768987533792,-500.0,0.00041369,120]
[402917830,1768987533837,-679.71,0.00041369,120]
[402917831,1768987533883,-500.0,0.00041369,120]
[402917832,1768987533929,-585.61051476,0.00041369,120]
[402917833,1768987533973,-500.0,0.00041369,120]
[402917834,1768987534019,-714.9,0.00041369,120]
[402917835,1768987534067,-500.0,0.00041369,120]
[402917836,1768987534112,-500.0,0.00041369,120]
[402917837,1768987534158,-500.0,0.00041369,120]
[402917838,1768987534204,-500.0,0.00041369,120]
[402917839,1768987534249,-589.5,0.00041369,120]
[402917840,1768987534294,-500.0,0.00041369,120]
[402917841,1768987534339,-500.0,0.00041369,120]
[402917842,1768987534385,-500.0,0.00041369,120]
[402917843,1768987534429,-1331.3,0.00041369,120]
[402917844,1768987534473,-500.0,0.00041369,120]
[402917845,1768987534516,-606.96,0.00041369,120]
[402917846,1768987534560,-500.0,0.00041369,120]
[402917847,1768987534604,-500.0,0.00041369,120]
[402917848,1768987534648,-515.74,0.00041369,120]
[402917849,1768987534693,-632.04,0.00041369,120]
[402917850,1768987534738,-513.47,0.00041369,120]
[402917851,1768987534784,-559.52,0.00041369,120]
[402917852,1768987534827,-500.0,0.00041369,120]
[402917853,1768987534871,-500.0,0.00041369,120]
[402917854,1768987534914,-752.51,0.00041369,120]
[402917855,1768987534959,-500.0,0.00041369,120]
[402917856,1768987535005,-500.0,0.00041369,120]
[402917857,1768987535051,-500.0,0.00041369,120]
[402917858,1768987535100,-500.0,0.00041369,120]
[402917859,1768987535147,-500.0,0.00041369,120]
[402917860,1768987535194,-500.0,0.00041369,120]
[402917861,1768987535239,-500.0,0.00041369,120]
[402917862,1768987535285,-500.0,0.00041369,120]
[402917863,1768987535329,-669.57,0.00041369,120]
[402917864,1768987535373,-500.0,0.00041369,60]
[402917865,1768987535417,-500.0,0.00041369,120]
[402917866,1768987535462,-500.0,0.00041369,60]
[402917867,1768987535505,-500.0,0.00041369,120]
[402917868,1768987535549,-500.0,0.00041369,120]
[402917869,1768987535592,-1155.7,0.00041369,120]
[402917870,1768987535635,-500.0,0.00041369,120]
[402917871,1768987535679,-500.0,0.00041369,120]
[402917872,1768987535722,-500.0,0.00041369,120]
[402917873,1768987535767,-500.0,0.00041369,120]
[402917874,1768987535811,-500.0,0.00041369,120]
[402917875,1768987535858,-1350.75,0.00041369,120]
[402917876,1768987535901,-500.0,0.00041369,120]
[402917877,1768987535943,-500.0,0.00041369,120]
[402917878,1768987535986,-529.76,0.00041369,120]
[402917879,1768987536030,-500.0,0.00041369,120]
[402917880,1768987536072,-500.0,0.00041369,120]
[402917881,1768987536116,-766.15,0.00041369,120]
[402917882,1768987536162,-853.58,0.00041369,120]
[402917883,1768987536207,-841.94,0.00041369,120]
[402917884,1768987536254,-695.08,0.00041369,120]
[402917885,1768987536299,-500.0,0.00041369,120]
[402917886,1768987536343,-519.43,0.00041369,120]
[402917887,1768987536388,-500.0,0.00041369,120]
[402917888,1768987536432,-500.0,0.00041369,120]
[402917889,1768987536482,-500.0,0.00041369,120]
[402917890,1768987536526,-622.11,0.00041369,120]
[402917891,1768987536569,-500.0,0.00041369,120]
[402917892,1768987536613,-568.76342949,0.00041369,120]
[402917893,1768987536658,-500.0,0.00041369,120]
[402917894,1768987536703,-586.24,0.00041369,120]
[402917895,1768987536748,-535.51,0.00041369,120]
[402917896,1768987536791,-500.0,0.00041369,120]
[402917897,1768987536834,-500.0,0.00041369,90]
[402917898,1768987536877,-500.0,0.00041369,120]
[402917899,1768987536920,-500.0,0.00041369,120]
[402917900,1768987536964,-644.47,0.00041369,120]
[402917901,1768987537007,-500.0,0.00041369,120]
[402917902,1768987537068,-500.0,0.00041369,120]
[402917903,1768987537115,-500.0,0.00041369,120]
[402917904,1768987537161,-500.0,0.00041369,120]
[402917905,1768987537206,-500.0,0.00041369,120]
[402917906,1768987537251,-500.0,0.00041369,120]
[402917907,1768987537298,-500.0,0.00041369,120]
[402917908,1768987537346,-500.0,0.00041369,120]
[402917909,1768987537618,-500.0,0.00041369,120]
[402917910,1768987537662,-500.0,0.00041369,120]
[402917911,1768987537709,-696.85,0.00041369,120]
[402917912,1768987537756,-500.0,0.00041369,120]
[402917913,1768987537800,-500.0,0.00041369,120]
[402917914,1768987537850,-623.64,0.00041369,120]
[402917915,1768987537896,-889.13,0.00041369,120]
[402917916,1768987537941,-500.0,0.00041369,120]
[402917917,1768987537985,-691.15,0.00041369,120]
[402917918,1768987538031,-500.0,0.00041369,120]
[402917919,1768987538078,-500.0,0.00041369,120]
[402917920,1768987538125,-500.0,0.00041369,120]
[402917921,1768987538174,-500.0,0.00041369,120]
[402917922,1768987538222,-500.0,0.00041369,120]
[402917923,1768987538271,-567.88,0.00041369,120]
[402917924,1768987538317,-500.0,0.00041369,120]
[402917925,1768987538363,-655.24,0.00041369,120]
[402917926,1768987538409,-500.0,0.00041369,120]
[402917927,1768987538455,-500.0,0.00041369,120]
[402917928,1768987538500,-500.0,0.00041369,120]
[402917929,1768987538545,-500.0,0.00041369,120]
[402917930,1768987538590,-500.0,0.00041369,120]
[402917931,1768987538635,-500.0,0.00041369,120]
[402917932,1768987538683,-645.41,0.00041369,120]
[402917933,1768987538733,-698.04,0.00041369,120]
[402917934,1768987538785,-545.16,0.00041369,120]
[402917935,1768987538833,-507.63,0.00041369,120]
[402917936,1768987538883,-500.0,0.00041369,120]
[402917937,1768987538938,-500.0,0.00041369,120]
[402917938,1768987538987,-500.0,0.00041369,120]
[402917939,1768987539036,-500.0,0.00041369,120]
[402917940,1768987539087,-500.0,0.00041369,120]
[402917941,1768987539137,-1000.0,0.0004137,30]
[402917942,1768987539192,-212.77367991,0.00041597,101]
[402917943,1768987539242,-511.30673724,0.00041643,120]
[402917944,1768987539291,-726.21,0.00041643,120]
[402917945,1768987539344,-500.0,0.00041643,120]
[402917946,1768987539394,-862.89,0.00041643,120]
[402917947,1768987539441,-500.0,0.00041643,120]
[402917948,1768987539487,-500.0,0.00041643,120]
[402917949,1768987539531,-500.0,0.00041643,120]
[402917950,1768987539578,-500.0,0.00041643,120]
[402917951,1768987539625,-500.0,0.00041643,120]
[402917952,1768987539668,-500.0,0.00041643,120]
[402917953,1768987539712,-500.0,0.00041643,120]
[402917954,1768987539757,-572.26,0.00041643,120]
[402917955,1768987539802,-500.0,0.00041643,120]
[402917956,1768987539847,-500.0,0.00041643,120]
[402917957,1768987539891,-500.0,0.00041643,120]
[402917958,1768987539936,-500.0,0.00041643,120]
[402917959,1768987539980,-500.0,0.00041643,120]
[402917960,1768987540026,-500.0,0.00041643,120]
[402917961,1768987540072,-1126.09,0.00041643,120]
[402917962,1768987540117,-500.0,0.00041643,120]
[402917963,1768987540163,-500.0,0.00041643,120]
[402917964,1768987540208,-541.42082305,0.00041643,120]
[402917965,1768987540250,-500.0,0.00041643,120]
[402917966,1768987540293,-757.16,0.00041643,120]
[402917967,1768987540336,-500.0,0.00041643,120]
[402917968,1768987540379,-500.0,0.00041643,120]
[402917969,1768987540421,-500.0,0.00041643,120]
[402917970,1768987540464,-500.0,0.00041643,120]
[402917971,1768987540508,-500.0,0.00041643,120]
[402917972,1768987540551,-500.0,0.00041643,120]
[402917973,1768987540594,-500.0,0.00041643,120]
[402917974,1768987540635,-500.0,0.00041643,120]
[402917975,1768987540678,-500.0,0.00041643,120]
[402917976,1768987540721,-500.0,0.00041643,120]
[402917977,1768987540763,-500.0,0.00041643,120]
[402917978,1768987540804,-500.0,0.00041643,120]
[402917979,1768987540845,-1000.0,0.00041643,120]
[402917980,1768987540889,-500.0,0.00041643,120]
[402917981,1768987540933,-500.0,0.00041643,120]
[402917982,1768987540978,-500.0,0.00041643,120]
[402917983,1768987541026,-760.9,0.00041643,120]
[402917984,1768987541071,-500.0,0.00041643,120]
[402917985,1768987541115,-500.0,0.00041643,120]
[402917986,1768987541159,-500.0,0.00041643,120]
[402917987,1768987541204,-668.11,0.00041643,120]
[402917988,1768987541250,-500.0,0.00041643,120]
[402917989,1768987541293,-500.0,0.00041643,120]
[402917990,1768987541336,-500.0,0.00041643,120]
[402917991,1768987541381,-637.16,0.00041643,120]
[402917992,1768987541424,-505.66,0.00041643,120]
[402917993,1768987541469,-1065.16,0.00041643,120]
[402917994,1768987541514,-1064.67,0.00041643,120]
[402917995,1768987541556,-500.0,0.00041643,120]
[402917996,1768987541601,-871.03,0.00041643,120]
[402917997,1768987541646,-525.23,0.00041643,120]
[402917998,1768987541688,-500.0,0.00041643,120]
[402917999,1768987541731,-662.06,0.00041643,120]
[402918000,1768987541773,-1051.35,0.00041643,120]
[402918001,1768987541815,-1104.23,0.00041643,120]
[402918002,1768987541858,-500.0,0.00041643,120]
[402918003,1768987542099,-500.0,0.00041643,120]
[402918004,1768987542145,-500.0,0.00041643,120]
[402918005,1768987542191,-500.0,0.00041643,120]
[402918006,1768987542235,-500.0,0.00041643,120]
[402918007,1768987542279,-500.0,0.00041643,120]
[402918008,1768987542323,-662.74,0.00041643,120]
[402918009,1768987542366,-543.88,0.00041643,120]
[402918010,1768987542408,-500.0,0.00041643,120]
[402918011,1768987542450,-500.0,0.00041643,120]
[402918012,1768987542494,-592.98,0.00041643,120]
[402918013,1768987542538,-500.0,0.00041643,120]
[402918014,1768987542583,-500.0,0.00041643,120]
[402918015,1768987542630,-732.36,0.00041643,120]
[402918016,1768987542679,-500.0,0.00041643,120]
[402918017,1768987542726,-500.0,0.00041643,120]
[402918018,1768987542774,-584.28,0.00041643,120]
[402918019,1768987542823,-500.0,0.00041643,120]
[402918020,1768987542864,-512.89,0.00041643,120]
[402918021,1768987542909,-594.65,0.00041643,120]
[402918022,1768987542953,-500.0,0.00041643,120]
[402918023,1768987542996,-500.0,0.00041643,120]
[402918024,1768987543040,-423.67534195,0.00041643,120]
[402918025,1768987543083,-500.0,0.00041643,120]
[402918026,1768987543129,-500.0,0.00041643,120]
[402918027,1768987543175,-500.0,0.00041643,120]
[402918028,1768987543227,-500.0,0.00041643,120]
[402918029,1768987543278,-500.0,0.00041643,120]
[402918030,1768987543329,-500.0,0.00041643,120]
[402918031,1768987543377,-726.3,0.00041643,120]
[402918032,1768987543417,-500.0,0.00041643,120]
[402918033,1768987543462,-500.0,0.00041643,120]
[402918034,1768987543505,-500.0,0.00041643,120]
[402918035,1768987543547,-669.38,0.00041643,120]
[402918036,1768987543588,-500.0,0.00041643,120]
[402918037,1768987543631,-351.54616141,0.00041643,120]
[402918038,1768987543673,-500.0,0.00041643,120]
[402918039,1768987543715,-500.0,0.00041643,120]
[402918040,1768987543757,-500.0,0.00041643,120]
[402918041,1768987543799,-500.0,0.00041643,120]
[402918042,1768987543842,-501.79,0.00041643,120]
[402918043,1768987543886,-500.0,0.00041643,120]
[402918044,1768987543930,-500.0,0.00041643,120]
[402918045,1768987543972,-500.0,0.00041643,120]
[402918046,1768987544015,-500.0,0.00041643,120]
[402918047,1768987544062,-500.0,0.00041643,120]
[402918048,1768987544112,-500.0,0.00041643,120]
[402918049,1768987544157,-633.52,0.00041643,120]
[402918050,1768987544203,-500.0,0.00041643,120]
[402918051,1768987544248,-885.04,0.00041643,120]
[402918052,1768987544292,-500.0,0.00041643,120]
[402918053,1768987544336,-500.0,0.00041643,120]
[402918054,1768987544385,-500.0,0.00041643,120]
[402918055,1768987544436,-500.0,0.00041643,120]
[402918056,1768987544497,-500.0,0.00041643,120]
[402918057,1768987544545,-500.0,0.00041643,120]
[402918058,1768987544587,-594.03,0.00041643,120]
[402918059,1768987544635,-582.17,0.00041643,120]
[402918060,1768987544692,-517.59002597,0.00041643,120]
[402918061,1768987544736,-500.0,0.00041643,120]
[402918062,1768987544779,-500.0,0.00041643,120]
[402918063,1768987544825,-500.0,0.00041643,120]
[402918064,1768987544869,-500.0,0.00041643,120]
[402918065,1768987544912,-500.0,0.00041643,120]
[402918066,1768987544955,-500.0,0.00041643,120]
[402918067,1768987544997,-500.0,0.00041643,120]
[402918068,1768987545041,-500.0,0.00041643,120]
[402918069,1768987545089,-500.0,0.00041643,120]
[402918070,1768987545141,-500.0,0.00041643,120]
[402918071,1768987545188,-500.0,0.00041643,120]
[402918072,1768987545234,-500.0,0.00041643,120]
[402918073,1768987545279,-523.49229338,0.00041643,120]
[402918074,1768987545324,-723.02,0.00041643,120]
[402918075,1768987545368,-500.0,0.00041643,120]
[402918076,1768987545411,-500.0,0.00041643,120]
[402918077,1768987545455,-500.0,0.00041643,120]
[402918078,1768987545500,-500.0,0.00041643,120]
[402918079,1768987545542,-679.71,0.00041643,120]
[402918080,1768987545585,-500.0,0.00041643,120]
[402918081,1768987545627,-500.0,0.00041643,120]
[402918082,1768987545669,-714.9,0.00041643,120]
[402918083,1768987545710,-500.0,0.00041643,120]
[402918084,1768987545758,-500.0,0.00041643,120]
[402918085,1768987545806,-618.88,0.00041643,120]
[402918086,1768987545861,-500.0,0.00041643,120]
[402918087,1768987545905,-589.5,0.00041643,120]
[402918088,1768987545948,-500.0,0.00041643,120]
[402918089,1768987545991,-500.0,0.00041643,120]
[402918090,1768987546034,-500.0,0.00041643,120]
[402918091,1768987546074,-1331.3,0.00041643,120]
[402918092,1768987546115,-500.0,0.00041643,120]
[402918093,1768987546155,-606.96,0.00041643,120]
[402918094,1768987546196,-627.52712705,0.00041643,120]
[402918095,1768987546240,-500.0,0.00041643,120]
[402918096,1768987546282,-515.74,0.00041643,120]
[402918097,1768987546509,-632.04,0.00041643,120]
[402918098,1768987546553,-513.47,0.00041643,120]
[402918099,1768987546598,-559.52,0.00041643,120]
[402918100,1768987546638,-500.0,0.00041643,120]
[402918101,1768987546678,-591.62238712,0.00041643,120]
[402918102,1768987546719,-752.51,0.00041643,120]
[402918103,1768987546760,-500.0,0.00041643,120]
[402918104,1768987546806,-500.0,0.00041643,120]
[402918105,1768987546848,-500.0,0.00041643,120]
[402918106,1768987546892,-500.0,0.00041643,120]
[402918107,1768987546939,-500.0,0.00041643,120]
[402918108,1768987546984,-500.0,0.00041643,120]
[402918109,1768987547028,-500.0,0.00041643,120]
[402918110,1768987547079,-500.0,0.00041643,120]
[402918111,1768987547128,-669.57,0.00041643,120]
[402918112,1768987547174,-500.0,0.00041643,60]
[402918113,1768987547219,-500.0,0.00041643,120]
[402918114,1768987547261,-500.0,0.00041643,60]
[402918115,1768987547304,-500.0,0.00041643,120]
[402918116,1768987547348,-500.0,0.00041643,120]
[402918117,1768987547390,-500.0,0.00041643,120]
[402918118,1768987547431,-543.17704463,0.00041643,120]
[402918119,1768987547472,-500.0,0.00041643,120]
[402918120,1768987547514,-500.0,0.00041643,120]
[402918121,1768987547557,-1155.7,0.00041643,120]
[402918122,1768987547600,-1350.75,0.00041643,120]
[402918123,1768987547640,-500.0,0.00041643,120]
[402918124,1768987547682,-500.0,0.00041643,120]
[402918125,1768987547722,-529.76,0.00041643,120]
[402918126,1768987547763,-500.0,0.00041643,120]
[402918127,1768987547805,-500.0,0.00041643,120]
[402918128,1768987547846,-766.15,0.00041643,120]
[402918129,1768987547888,-853.58,0.00041643,120]
[402918130,1768987547930,-841.94,0.00041643,120]
[402918131,1768987547977,-695.08,0.00041643,120]
[402918132,1768987548024,-500.0,0.00041643,120]
[402918133,1768987548075,-519.43,0.00041643,120]
[402918134,1768987548119,-500.0,0.00041643,120]
[402918135,1768987548166,-500.0,0.00041643,120]
[402918136,1768987548210,-500.0,0.00041643,120]
[402918137,1768987548253,-622.11,0.00041643,120]
[402918138,1768987548296,-500.0,0.00041643,120]
[402918139,1768987548339,-518.12758527,0.00041643,120]
[402918140,1768987548380,-586.24,0.00041643,120]